bitfinex/quotes_BTCUSD_20250204
["timestamp","ask_amount","ask_price","bid_price","bid_amount"]
[1738672662052,0.06022,99499.0,99455.0,0.0773]
[1738672662258,0.21022,99496.0,99455.0,0.0773]
[1738672662466,0.06022,99493.0,99455.0,0.0773]
[1738672662685,0.21022,99491.0,99455.0,0.0773]
[1738672662892,0.10238506,99492.0,99455.0,0.0773]
[1738672662893,0.16260506,99490.0,99455.0,0.0773]
[1738672663097,0.06022,99486.0,99482.0,0.00407709]
[1738672663304,0.10238506,99483.0,99482.0,0.00407709]
[1738672663510,0.08571839,99483.0,99482.0,0.00407709]
[1738672664451,0.16741839,99483.0,99482.0,0.00407709]
[1738672664839,0.16741839,99483.0,99482.0,0.00507709]
[1738672665038,0.31741839,99483.0,99482.0,0.00507709]
[1738672666292,0.31289218,99483.0,99482.0,0.00507709]
[1738672666500,0.31289218,99483.0,99482.0,0.00407709]
[1738672666944,0.15,99482.0,99437.0,0.0773]
[1738672667141,0.15,99480.0,99479.0,0.00027128]
[1738672667317,0.25238506,99480.0,99479.0,0.00027128]
[1738672668161,0.25238506,99480.0,99479.0,0.00127128]
[1738672668578,0.25238506,99480.0,99479.0,0.00027128]
[1738672670662,0.25238506,99480.0,99479.0,0.00127128]
[1738672670846,0.25238506,99480.0,99479.0,0.00027128]
[1738672671187,0.23338506,99480.0,99479.0,0.00127128]
[1738672672466,0.01447379,99483.0,99479.0,0.00127128]
[1738672672874,0.13553078,99500.0,99479.0,0.00127128]
[1738672673080,0.10238506,99499.0,99479.0,0.00127128]
[1738672673288,0.15,99498.0,99479.0,0.00127128]
[1738672673492,0.753806,99495.0,99479.0,0.00127128]
[1738672673692,0.150784,99480.0,99479.0,0.00127128]
[1738672673899,0.150784,99480.0,99479.0,0.00027128]
[1738672674334,0.150784,99480.0,99479.0,0.00127128]
[1738672674969,0.25316906,99480.0,99479.0,0.00127128]
[1738672675175,0.40316906,99480.0,99479.0,0.00027128]
[1738672675394,0.40316906,99480.0,99479.0,0.00127128]
[1738672675837,0.40316906,99480.0,99479.0,0.00027128]
[1738672676261,0.38416906,99480.0,99479.0,0.00027128]
[1738672677020,0.14646617,99480.0,99479.0,0.00027128]
[1738672677221,0.01468217,99480.0,99479.0,0.00027128]
[1738672677431,0.150784,99480.0,99479.0,0.00127128]
[1738672677836,0.150784,99480.0,99479.0,0.00027128]
[1738672678312,0.150784,99480.0,99479.0,0.00127128]
[1738672678523,0.150784,99480.0,99479.0,0.00027128]
[1738672678926,0.150784,99480.0,99479.0,0.00127128]
[1738672679323,0.150784,99480.0,99479.0,0.00027128]
[1738672679924,0.201042,99482.0,99479.0,0.00027128]
[1738672680229,0.01501689,99484.0,99479.0,0.00027128]
[1738672680439,0.351015,99495.0,99479.0,0.00027128]
[1738672680671,0.150783,99481.0,99479.0,0.00027128]
[1738672680848,0.10238506,99494.0,99479.0,0.00127128]
[1738672681051,0.150781,99482.0,99479.0,0.00127128]
[1738672681251,0.150776,99485.0,99479.0,0.00027128]
[1738672681481,0.10238506,99494.0,99479.0,0.00027128]
[1738672681688,0.150784,99480.0,99479.0,0.00127128]
[1738672681899,0.150784,99480.0,99479.0,0.00027128]
[1738672682104,0.201036,99485.0,99479.0,0.00027128]
[1738672682308,0.150778,99484.0,99479.0,0.00127128]
[1738672682486,0.10238506,99494.0,99479.0,0.00127128]
[1738672682705,0.150779,99483.0,99479.0,0.00027128]
[1738672682914,0.0001069,99481.0,99479.0,0.00027128]
[1738672683795,0.0001069,99481.0,99480.0,0.200384]
[1738672684214,0.0001069,99481.0,99480.0,0.281084]
[1738672685314,0.0001069,99481.0,99480.0,0.38346906]
[1738672686060,0.0001069,99481.0,99480.0,0.38446906]
[1738672686289,0.0001069,99481.0,99480.0,0.88707906]
[1738672686978,0.0758886,99501.0,99495.0,0.15076]
[1738672687214,0.0758886,99501.0,99496.0,0.150759]
[1738672687452,0.08024193,99515.0,99498.0,0.150756]
[1738672687664,0.200978,99513.0,99496.0,0.50253]
[1738672687871,0.200983,99511.0,99498.0,0.50252]
[1738672688109,0.150741,99509.0,99498.0,0.50252]
[1738672688317,0.41678589,99515.0,99498.0,0.50252]
[1738672688525,0.150754,99500.0,99498.0,0.50252]
[1738672688736,0.33654396,99515.0,99498.0,0.50252]
[1738672688943,0.150744,99507.0,99498.0,0.50252]
[1738672689148,0.33654396,99515.0,99498.0,0.50252]
[1738672689432,0.150744,99506.0,99498.0,0.50352]
[1738672689639,0.150747,99505.0,99498.0,0.50352]
[1738672689847,0.200982,99512.0,99498.0,0.50352]
[1738672690089,0.200982,99512.0,99499.0,0.150755]
[1738672690090,0.150737,99512.0,99499.0,0.150755]
[1738672690345,0.200976,99514.0,99499.0,0.50252]
[1738672690796,0.200978,99513.0,99499.0,0.50252]
[1738672691063,0.150734,99513.0,99499.0,0.50252]
[1738672691324,0.51851896,99515.0,99499.0,0.50252]
[1738672691530,0.46827596,99515.0,99501.0,0.150752]
[1738672691734,0.46827596,99515.0,99501.0,0.50251]
[1738672691735,0.150734,99513.0,99501.0,0.50251]
[1738672691978,0.200976,99514.0,99501.0,0.50251]
[1738672692194,0.31754396,99515.0,99501.0,0.50251]
[1738672692420,0.200976,99514.0,99501.0,0.50251]
[1738672692648,0.31754396,99515.0,99501.0,0.50251]
[1738672692877,0.0001068,99520.0,99513.0,0.150732]
[1738672693113,0.0001068,99537.0,99520.0,0.13553078]
[1738672693348,0.0001068,99537.0,99520.0,0.78866278]
[1738672693573,0.150707,99531.0,99520.0,0.50241]
[1738672693800,0.1508048,99537.0,99520.0,0.50241]
[1738672694049,0.0001068,99537.0,99520.0,0.50241]
[1738672694268,0.00057514,99537.0,99520.0,0.50241]
[1738672694613,0.150702,99534.0,99520.0,0.653133]
[1738672694810,0.1507,99536.0,99522.0,0.150719]
[1738672695019,0.1507,99536.0,99522.0,0.653119]
[1738672695238,0.10238506,99535.0,99522.0,0.5024]
[1738672695449,0.150718,99524.0,99522.0,0.5024]
[1738672695660,0.10238506,99523.0,99522.0,0.5024]
[1738672696301,0.08338506,99523.0,99522.0,0.5024]
[1738672697562,0.08338506,99523.0,99522.0,0.5034]
[1738672697771,0.08338506,99523.0,99522.0,0.5024]
[1738672698448,0.09799622,99523.0,99522.0,0.5024]
[1738672699124,0.40069622,99523.0,99522.0,0.5024]
[1738672699331,0.40069622,99523.0,99522.0,0.5034]
[1738672699757,0.55141422,99523.0,99522.0,0.5034]
[1738672701433,0.53241422,99523.0,99522.0,0.5034]
[1738672702520,0.31731116,99523.0,99522.0,0.5034]
[1738672704017,0.57041422,99523.0,99522.0,0.5034]
[1738672705904,0.31731116,99523.0,99522.0,0.5034]
[1738672706335,0.29831116,99523.0,99522.0,0.5034]
[1738672706740,0.31307783,99523.0,99522.0,0.5034]
[1738672709525,0.01476667,99523.0,99522.0,0.5034]
[1738672709767,0.0001069,99534.0,99522.0,0.5034]
[1738672710391,0.01444802,99534.0,99522.0,0.5034]
[1738672710779,0.01444802,99534.0,99522.0,0.5024]
[1738672711195,0.14602316,99539.0,99522.0,0.5034]
[1738672711402,0.150703,99533.0,99522.0,0.5034]
[1738672711599,0.1507,99535.0,99522.0,0.5034]
[1738672711854,0.10238506,99532.0,99522.0,0.5034]
[1738672712588,0.25309106,99532.0,99522.0,0.5034]
[1738672712786,0.10238506,99532.0,99522.0,0.5034]
[1738672713191,0.25309006,99532.0,99522.0,0.5034]
[1738672713398,0.10238506,99532.0,99522.0,0.5034]
[1738672713831,0.10238506,99532.0,99522.0,0.5024]
[1738672714037,0.29831116,99531.0,99522.0,0.5024]
[1738672714241,0.29831116,99531.0,99522.0,0.5034]
[1738672714643,0.29831116,99531.0,99522.0,0.5024]
[1738672715070,0.29831116,99531.0,99522.0,0.5034]
[1738672715427,0.29831116,99531.0,99522.0,0.5024]
[1738672715769,0.29831116,99531.0,99522.0,0.5034]
[1738672716372,0.27931116,99531.0,99522.0,0.5034]
[1738672716579,0.150718,99523.0,99522.0,0.5034]
[1738672716754,0.25310306,99523.0,99522.0,0.5034]
[1738672716933,0.74263422,99523.0,99522.0,0.44417293]
[1738672717617,0.74263422,99523.0,99522.0,0.27361843]
[1738672717618,0.78563422,99523.0,99522.0,0.27361843]
[1738672717824,0.78563422,99523.0,99522.0,0.24299333]
[1738672718018,0.88812894,99523.0,99522.0,0.18269333]
[1738672718635,0.89689734,99523.0,99522.0,0.18269333]
[1738672718834,0.89689734,99523.0,99522.0,0.14721333]
[1738672718835,0.92123371,99523.0,99522.0,0.14721333]
[1738672719237,0.92123371,99523.0,99522.0,0.14221333]
[1738672719434,0.92123371,99523.0,99522.0,0.14121333]
[1738672719681,0.81873899,99523.0,99522.0,0.13821333]
[1738672720269,0.81873899,99523.0,99522.0,0.10621333]
[1738672720484,0.78573899,99523.0,99522.0,0.10621333]
[1738672721303,0.78673899,99523.0,99522.0,0.10621333]
[1738672721533,0.78573899,99523.0,99522.0,0.10621333]
[1738672721879,0.78573899,99523.0,99522.0,0.10721333]
[1738672722302,0.78573899,99523.0,99522.0,0.10621333]
[1738672722757,0.78573899,99523.0,99522.0,0.10721333]
[1738672722962,0.82980753,99523.0,99522.0,0.10721333]
[1738672723168,0.81873899,99523.0,99522.0,0.10621333]
[1738672723367,0.75851899,99523.0,99522.0,0.10621333]
[1738672723631,0.75851899,99523.0,99522.0,0.10643761]
[1738672724511,0.75851899,99523.0,99522.0,0.06649961]
[1738672725235,0.310721,99521.0,99520.0,1e-08]
[1738672725451,0.15,99512.0,99479.0,0.00022428]
[1738672725689,0.15,99510.0,99479.0,0.00022428]
[1738672725912,0.38169622,99511.0,99479.0,0.00022428]
[1738672725913,0.13553078,99500.0,99479.0,0.00022428]
[1738672726131,0.150783,99481.0,99479.0,0.00022428]
[1738672726395,0.25316806,99481.0,99479.0,0.00022428]
[1738672726609,0.25238506,99480.0,99479.0,0.00022428]
[1738672727323,0.25238506,99480.0,99479.0,0.00069262]
[1738672728368,0.27037478,99480.0,99479.0,0.00169262]
[1738672728691,0.27037478,99480.0,99479.0,0.00069262]
[1738672728911,0.28909707,99480.0,99479.0,0.00069262]
[1738672729093,0.28909707,99480.0,99479.0,0.00169262]
[1738672729295,0.38008308,99480.0,99479.0,0.00169262]
[1738672729464,0.43798308,99480.0,99443.0,0.0782]
[1738672729663,0.150825,99453.0,99452.0,0.00027107]
[1738672730004,0.300825,99453.0,99452.0,0.00027107]
[1738672731487,0.29997993,99453.0,99452.0,0.00127107]
[1738672731920,0.29997993,99453.0,99452.0,0.00027107]
[1738672732137,0.31870222,99453.0,99452.0,0.00027107]
[1738672732321,0.31870222,99453.0,99452.0,0.00127107]
[1738672732756,0.31870222,99453.0,99452.0,0.00027107]
[1738672732981,0.31870222,99453.0,99452.0,0.00127107]
[1738672732982,0.42108728,99453.0,99452.0,0.00127107]
[1738672734379,0.42108728,99453.0,99452.0,0.00027107]
[1738672734910,0.42108728,99453.0,99452.0,0.00127107]
[1738672735084,0.42108728,99453.0,99452.0,0.00027107]
[1738672735297,0.50441471,99453.0,99452.0,0.00027107]
[1738672735474,0.45090982,99453.0,99452.0,0.00127107]
[1738672736441,0.46990982,99453.0,99452.0,0.00027107]
[1738672736882,0.06669976,99453.0,99452.0,0.00027107]
[1738672737087,0.04854483,99453.0,99452.0,0.08247107]
[1738672737908,0.0185985,99455.0,99452.0,0.08347107]
[1738672738306,0.150822,99455.0,99452.0,0.08247107]
[1738672738515,0.150818,99458.0,99452.0,0.08247107]
[1738672738721,0.150816,99459.0,99452.0,0.08347107]
[1738672738928,0.150816,99459.0,99452.0,0.08247107]
[1738672739133,0.150819,99457.0,99452.0,0.08247107]
[1738672739340,0.150819,99457.0,99452.0,0.08347107]
[1738672739553,0.01821103,99460.0,99452.0,0.08347107]
[1738672739765,0.01821103,99460.0,99452.0,0.08247107]
[1738672740132,0.27931116,99461.0,99452.0,0.08247107]
[1738672740333,0.23024193,99488.0,99453.0,0.10238506]
[1738672740334,0.27931116,99479.0,99453.0,0.10238506]
[1738672740544,0.08024193,99466.0,99452.0,0.08247107]
[1738672740757,0.150793,99474.0,99452.0,0.08247107]
[1738672740959,0.201053,99476.0,99457.0,0.150817]
[1738672741170,0.1508,99469.0,99453.0,0.150824]
[1738672741331,0.150798,99471.0,99453.0,0.150824]
[1738672741530,0.150798,99471.0,99452.0,0.08347107]
[1738672741531,0.29768195,99479.0,99452.0,0.08347107]
[1738672741899,0.150794,99474.0,99453.0,0.150825]
[1738672742050,0.29768195,99479.0,99452.0,0.08247107]
[1738672742259,0.150791,99475.0,99458.0,0.150816]
[1738672742456,0.150789,99477.0,99452.0,0.08247107]
[1738672742661,0.29768195,99479.0,99453.0,0.10238506]
[1738672742862,0.27931116,99479.0,99471.0,0.150797]
[1738672743065,0.27931116,99479.0,99453.0,0.10359163]
[1738672743066,0.27931116,99479.0,99477.0,0.150788]
[1738672743264,0.09864176,99488.0,99478.0,0.0795]
[1738672743440,0.09864176,99488.0,99475.0,0.0462]
[1738672743441,0.00661798,99478.0,99475.0,0.0462]
[1738672743647,0.15078,99483.0,99475.0,0.0462]
[1738672744085,0.150781,99482.0,99475.0,0.0462]
[1738672744228,0.150775,99486.0,99475.0,0.0462]
[1738672744429,0.30340206,99494.0,99475.0,0.0462]
[1738672744650,0.150778,99484.0,99475.0,0.0462]
[1738672744862,0.150775,99486.0,99475.0,0.0462]
[1738672745275,0.150777,99485.0,99475.0,0.0462]
[1738672745446,0.201021,99492.0,99475.0,0.0462]
[1738672745676,0.1210382,99494.0,99475.0,0.0462]
[1738672745874,0.150776,99486.0,99475.0,0.0462]
[1738672746277,0.150775,99486.0,99475.0,0.0462]
[1738672746471,0.1210382,99494.0,99475.0,0.0462]
[1738672746746,0.27931116,99493.0,99475.0,0.0462]
[1738672746921,0.26031116,99493.0,99476.0,0.15079]
[1738672747142,0.26031116,99493.0,99477.0,0.150787]
[1738672747880,0.26031116,99493.0,99475.0,0.0462]
[1738672748409,0.41107616,99493.0,99475.0,0.0462]
[1738672748632,0.150766,99492.0,99476.0,0.150789]
[1738672750297,0.26031116,99493.0,99475.0,0.0462]
[1738672750522,0.46133116,99493.0,99475.0,0.0462]
[1738672750749,0.150769,99490.0,99475.0,0.0462]
[1738672750979,0.150766,99492.0,99475.0,0.19699]
[1738672751195,0.26031116,99493.0,99475.0,0.0462]
[1738672751399,0.34369622,99493.0,99475.0,0.0462]
[1738672751607,0.150781,99482.0,99475.0,0.0462]
[1738672751813,0.150783,99481.0,99475.0,0.0462]
[1738672752056,0.150795,99473.0,99462.0,0.0484]
[1738672752238,0.150799,99470.0,99462.0,0.0484]
[1738672752478,0.10238506,99481.0,99462.0,0.0484]
[1738672752683,0.150792,99475.0,99462.0,0.0484]
[1738672752893,0.24131116,99480.0,99462.0,0.0484]
[1738672753637,0.24131116,99480.0,99465.0,0.150806]
[1738672753832,0.150798,99471.0,99462.0,0.0484]
[1738672754044,0.24131116,99480.0,99462.0,0.0484]
[1738672754245,0.201049,99478.0,99462.0,0.0484]
[1738672754618,0.24131116,99480.0,99460.0,0.08302449]
[1738672754820,0.24131116,99480.0,99460.0,0.09132694]
[1738672755030,0.150799,99470.0,99460.0,0.09132694]
[1738672755207,0.201059,99473.0,99460.0,0.09132694]
[1738672755488,0.150799,99470.0,99460.0,0.09132694]
[1738672755701,0.201054,99476.0,99460.0,0.09132694]
[1738672755853,0.150803,99467.0,99460.0,0.08302449]
[1738672756255,0.131803,99467.0,99460.0,0.08302449]
[1738672756468,0.150802,99468.0,99460.0,0.08302449]
[1738672756661,0.150798,99471.0,99460.0,0.08302449]
[1738672756878,0.24131116,99480.0,99462.0,0.402162]
[1738672757090,0.150786,99479.0,99462.0,0.201081]
[1738672757294,0.402098,99478.0,99460.0,0.08302449]
[1738672757469,0.201053,99476.0,99460.0,0.08302449]
[1738672757673,0.150807,99465.0,99460.0,0.00022449]
[1738672757882,0.24131116,99480.0,99460.0,0.00022449]
[1738672758084,0.30343206,99479.0,99460.0,0.00022449]
[1738672758293,0.201049,99478.0,99460.0,0.50289449]
[1738672758497,0.34369622,99477.0,99460.0,0.50289449]
[1738672758699,0.150807,99465.0,99460.0,0.50289449]
[1738672758912,0.150811,99462.0,99460.0,0.50289449]
[1738672760064,0.10238506,99461.0,99460.0,0.50289449]
[1738672760342,0.34369622,99461.0,99460.0,0.50289449]
[1738672761315,0.32469622,99461.0,99460.0,0.50289449]
[1738672761822,0.49340688,99461.0,99460.0,0.50289449]
[1738672763511,0.52335197,99461.0,99460.0,0.50289449]
[1738672764767,0.44077891,99461.0,99460.0,0.50289449]
[1738672765001,0.28996691,99461.0,99460.0,0.50289449]
[1738672766001,0.27125625,99461.0,99460.0,0.50289449]
[1738672766246,0.22231116,99461.0,99460.0,0.58119449]
[1738672767224,0.22231116,99461.0,99460.0,0.73200849]
[1738672767474,0.22231116,99461.0,99460.0,0.58119449]
[1738672770031,0.0001069,99469.0,99460.0,0.58119449]
[1738672770231,0.0001069,99469.0,99464.0,0.150807]
[1738672770532,0.0001069,99469.0,99464.0,0.50269]
[1738672771257,0.22193413,99484.0,99464.0,0.50269]
[1738672771491,0.201051,99477.0,99464.0,0.50269]
[1738672771735,0.150793,99474.0,99464.0,0.50269]
[1738672771984,0.52535719,99484.0,99464.0,0.50269]
[1738672772222,0.32431919,99484.0,99464.0,0.50269]
[1738672772471,0.15079,99476.0,99464.0,0.50269]
[1738672772930,0.150788,99478.0,99464.0,0.50269]
[1738672773170,0.150787,99478.0,99464.0,0.50269]
[1738672773414,0.201039,99483.0,99464.0,0.50269]
[1738672773829,0.150788,99477.0,99464.0,0.50269]
[1738672774309,0.24021541,99484.0,99464.0,0.50269]
[1738672774536,0.22193413,99484.0,99464.0,0.50269]
[1738672774752,0.22193413,99484.0,99465.0,0.0455]
[1738672774984,0.22193413,99484.0,99470.0,0.201064]
[1738672775218,0.22193413,99484.0,99470.0,0.50266]
[1738672775473,0.22193413,99484.0,99474.0,0.150792]
[1738672775725,0.22193413,99484.0,99474.0,0.50264]
[1738672776333,0.20293413,99484.0,99474.0,0.653432]
[1738672776743,0.20293413,99484.0,99474.0,0.50264]
[1738672776952,0.20293413,99484.0,99477.0,0.150788]
[1738672777152,0.20293413,99484.0,99481.0,0.150782]
[1738672777359,0.20293413,99484.0,99482.0,0.15078]
[1738672777565,0.20293413,99484.0,99482.0,0.65338]
[1738672777777,0.0001069,99493.0,99491.0,0.195866]
[1738672777977,0.0001069,99493.0,99492.0,0.17838506]
[1738672778831,0.0001069,99493.0,99492.0,0.68093506]
[1738672778976,0.0001069,99493.0,99492.0,0.57855]
[1738672780353,0.0001069,99493.0,99492.0,0.729315]
[1738672780672,0.0001069,99493.0,99492.0,0.57855]
[1738672781293,0.1318509,99506.0,99492.0,0.57855]
[1738672781500,0.150746,99505.0,99492.0,0.57855]
[1738672781710,0.09828458,99512.0,99492.0,0.57855]
[1738672781903,0.150745,99506.0,99492.0,0.57855]
[1738672782157,0.01804265,99512.0,99492.0,0.50255]
[1738672782368,0.15076,99496.0,99492.0,0.50255]
[1738672782584,0.150752,99502.0,99492.0,0.50255]
[1738672782792,0.20099,99507.0,99492.0,0.50255]
[1738672783016,0.150751,99502.0,99492.0,0.50255]
[1738672783217,0.150754,99500.0,99492.0,0.50255]
[1738672783419,0.200994,99505.0,99492.0,0.50255]
[1738672783627,0.150759,99497.0,99492.0,0.50255]
[1738672783850,0.150754,99500.0,99492.0,0.50255]
[1738672784288,0.10238506,99507.0,99492.0,0.50255]
[1738672784289,0.200999,99503.0,99492.0,0.50255]
[1738672784477,0.200972,99517.0,99492.0,0.50255]
[1738672784699,0.15,99518.0,99493.0,0.201019]
[1738672784911,0.200977,99514.0,99493.0,0.50255]
[1738672785120,0.150743,99507.0,99493.0,0.50255]
[1738672785581,0.15,99519.0,99493.0,0.50255]
[1738672785789,0.15074,99509.0,99493.0,0.50255]
[1738672786000,0.15,99519.0,99493.0,0.50255]
[1738672786399,0.200983,99511.0,99493.0,0.50255]
[1738672786563,0.131,99519.0,99493.0,0.50255]
[1738672786564,0.150743,99507.0,99493.0,0.50255]
[1738672786982,0.150745,99506.0,99493.0,0.50255]
[1738672787181,0.02244777,99519.0,99493.0,0.50255]
[1738672787388,0.150746,99505.0,99493.0,0.50255]
[1738672788142,0.10238506,99518.0,99493.0,0.50255]
[1738672788344,0.150743,99507.0,99493.0,0.50255]
[1738672788725,0.15,99517.0,99493.0,0.50255]
[1738672788933,0.150742,99508.0,99493.0,0.50255]
[1738672789134,0.150735,99512.0,99494.0,0.201017]
[1738672789348,0.02342945,99520.0,99500.0,0.201005]
[1738672789349,0.22439345,99520.0,99500.0,0.201005]
[1738672789560,0.150729,99517.0,99500.0,0.653263]
[1738672789727,0.02342945,99520.0,99500.0,0.703514]
[1738672789943,0.0001069,99519.0,99500.0,0.50251]
[1738672790698,0.0001069,99519.0,99502.0,0.150749]
[1738672790838,0.150728,99517.0,99502.0,0.653249]
[1738672791049,0.150732,99515.0,99502.0,0.5025]
[1738672791243,0.150728,99517.0,99502.0,0.5025]
[1738672791716,0.0001069,99519.0,99502.0,0.5025]
[1738672792130,0.0001069,99519.0,99503.0,0.150749]
[1738672792338,0.150727,99518.0,99502.0,0.5025]
[1738672792511,0.150727,99518.0,99503.0,0.5025]
[1738672792941,0.150726,99518.0,99503.0,0.5025]
[1738672793571,0.0001069,99519.0,99503.0,0.5025]
[1738672794198,0.150726,99518.0,99503.0,0.5025]
[1738672794420,0.150731,99515.0,99503.0,0.5025]
[1738672794725,0.15073,99516.0,99503.0,0.5025]
[1738672795078,0.0001069,99519.0,99503.0,0.5025]
[1738672795491,0.15073,99516.0,99503.0,0.5025]
[1738672795702,0.150731,99515.0,99503.0,0.5025]
[1738672796320,0.200968,99518.0,99503.0,0.5025]
[1738672796945,0.0001069,99519.0,99503.0,0.5025]
[1738672797147,0.150731,99515.0,99503.0,0.5025]
[1738672798213,0.150733,99514.0,99503.0,0.5025]
[1738672798635,0.0001069,99519.0,99518.0,0.150726]
[1738672798843,0.0001069,99519.0,99518.0,0.653146]
[1738672799256,0.0001069,99519.0,99518.0,0.50242]
[1738672799455,0.0001069,99519.0,99518.0,0.52247048]
[1738672800385,0.0001069,99519.0,99518.0,0.50242]
[1738672801209,0.1508309,99519.0,99518.0,0.50242]
[1738672801386,0.1318309,99519.0,99518.0,0.50242]
[1738672801538,0.23421596,99519.0,99518.0,0.50242]
[1738672802160,0.58715009,99519.0,99518.0,0.50242]
[1738672802360,0.66465009,99519.0,99518.0,0.50242]
[1738672803555,0.43715009,99519.0,99518.0,0.50242]
[1738672804203,0.43565009,99519.0,99518.0,0.50242]
[1738672805047,0.66835009,99519.0,99518.0,0.50242]
[1738672805215,0.71365009,99519.0,99518.0,0.50242]
[1738672805579,0.71355009,99519.0,99518.0,0.50242]
[1738672805842,0.7623702,99519.0,99518.0,0.50242]
[1738672806053,0.7853702,99519.0,99518.0,0.49063036]
[1738672806272,0.7853702,99519.0,99518.0,0.45125206]
[1738672806477,0.7853702,99519.0,99518.0,0.35052212]
[1738672806679,0.7853702,99519.0,99518.0,0.34395803]
[1738672806892,0.150753,99500.0,99499.0,0.3]
[1738672807091,0.53003806,99500.0,99499.0,0.3]
[1738672808244,0.57885817,99500.0,99499.0,0.3]
[1738672808451,0.60152168,99500.0,99499.0,0.3]
[1738672809420,0.57147853,99500.0,99499.0,0.3]
[1738672810006,0.57447853,99500.0,99499.0,0.3]
[1738672810416,0.57147853,99500.0,99499.0,0.3]
[1738672810676,0.66882618,99500.0,99499.0,0.3]
[1738672811465,0.55247853,99500.0,99499.0,0.3]
[1738672812138,0.7366357,99500.0,99499.0,0.3]
[1738672812350,0.7596357,99500.0,99499.0,0.3]
[1738672812791,0.7596357,99500.0,99499.0,0.27696122]
[1738672813012,0.7636357,99500.0,99499.0,0.23696122]
[1738672813226,0.86213042,99500.0,99499.0,0.23696122]
[1738672813438,0.95232956,99500.0,99499.0,0.19796122]
[1738672813657,0.06022,99496.0,99465.0,0.08024193]
[1738672813880,0.150805,99466.0,99465.0,0.08024193]
[1738672814089,0.150805,99466.0,99433.0,0.0768]
[1738672814090,0.15,99465.0,99433.0,0.0768]
[1738672814307,0.45531919,99465.0,99432.0,0.0456]
[1738672814723,0.45381919,99465.0,99432.0,0.0456]
[1738672815323,0.45381919,99465.0,99464.0,0.00027149]
[1738672816434,0.43481919,99465.0,99464.0,0.00027149]
[1738672816834,0.45817408,99465.0,99464.0,0.00027149]
[1738672817435,0.45817408,99465.0,99464.0,0.00227149]
[1738672820358,0.5606688,99465.0,99464.0,0.00227149]
[1738672821372,0.43917408,99465.0,99464.0,0.00227149]
[1738672823669,0.58998008,99465.0,99464.0,0.00227149]
[1738672823894,0.61298008,99465.0,99464.0,0.00027149]
[1738672824102,0.150825,99453.0,99435.0,0.00022428]
[1738672824263,0.33581006,99453.0,99452.0,0.00036516]
[1738672824467,0.30690077,99453.0,99452.0,0.00036516]
[1738672824682,0.25321006,99453.0,99452.0,0.00036516]
[1738672825685,0.201107,99450.0,99425.0,0.14202865]
[1738672825900,0.201107,99450.0,99425.0,0.00014114]
[1738672825901,0.150841,99442.0,99425.0,0.00014114]
[1738672826305,0.131841,99442.0,99425.0,0.00014114]
[1738672826494,0.150844,99440.0,99425.0,0.00014114]
[1738672826625,0.150846,99439.0,99425.0,0.00014114]
[1738672826829,0.150847,99439.0,99425.0,0.00014114]
[1738672827049,0.15085,99436.0,99425.0,0.00014114]
[1738672827455,0.150843,99441.0,99425.0,0.00014114]
[1738672827689,0.44097342,99440.0,99425.0,0.00014114]
[1738672827875,0.150864,99427.0,99425.0,0.00014114]
[1738672828085,0.150865,99426.0,99425.0,0.00014114]
[1738672828504,0.150865,99426.0,99425.0,0.00114114]
[1738672828922,0.150865,99426.0,99425.0,0.00014114]
[1738672829331,0.150865,99426.0,99425.0,0.00114114]
[1738672829741,0.1737942,99426.0,99425.0,0.00114114]
[1738672830989,0.1737942,99426.0,99425.0,0.00214114]
[1738672831413,0.1547942,99426.0,99425.0,0.00214114]
[1738672831619,0.16318161,99426.0,99425.0,0.00214114]
[1738672832848,0.36611574,99426.0,99425.0,0.00214114]
[1738672833103,0.54534177,99426.0,99425.0,0.00214114]
[1738672833312,0.6185008,99426.0,99425.0,0.00214114]
[1738672833480,0.6185008,99426.0,99425.0,0.00236542]
[1738672833663,0.6372041,99426.0,99425.0,0.00236542]
[1738672833868,0.23002484,99426.0,99425.0,0.19983242]
[1738672834273,0.02709071,99426.0,99425.0,0.38291748]
[1738672834558,0.02709071,99426.0,99425.0,0.38091748]
[1738672834696,0.0187033,99426.0,99425.0,0.38091748]
[1738672834902,0.0187033,99426.0,99425.0,0.38191748]
[1738672835157,0.0187033,99426.0,99425.0,0.27853242]
[1738672835364,0.21589616,99450.0,99426.0,0.201154]
[1738672835571,0.21589616,99450.0,99425.0,0.12766542]
[1738672835572,0.150834,99447.0,99427.0,0.201152]
[1738672835777,0.00752959,99446.0,99431.0,0.150858]
[1738672835996,0.10238506,99446.0,99425.0,0.27853242]
[1738672836209,0.15837123,99445.0,99427.0,0.150863]
[1738672836385,0.15837123,99445.0,99426.0,0.201154]
[1738672836386,0.10238506,99444.0,99426.0,0.201154]
[1738672836600,0.26075702,99444.0,99426.0,0.150865]
[1738672836941,0.10991802,99444.0,99427.0,0.150863]
[1738672837177,0.150841,99442.0,99425.0,0.27853142]
[1738672837398,0.10238506,99442.0,99425.0,0.27853142]
[1738672837605,0.00780645,99441.0,99425.0,0.12766542]
[1738672837818,0.28649923,99440.0,99425.0,0.12766542]
[1738672838035,0.150849,99438.0,99425.0,0.12766542]
[1738672838254,0.10238506,99437.0,99425.0,0.12866542]
[1738672838441,0.150865,99426.0,99425.0,0.00036542]
[1738672838906,0.15866737,99426.0,99425.0,0.00136542]
[1738672839338,0.15866737,99426.0,99425.0,0.00036542]
[1738672839552,0.17741104,99426.0,99425.0,0.00136542]
[1738672839972,0.17741104,99426.0,99425.0,0.00036542]
[1738672840176,0.2797961,99426.0,99425.0,0.00036542]
[1738672840622,0.30979931,99426.0,99425.0,0.00036542]
[1738672841499,0.29079931,99426.0,99425.0,0.00136542]
[1738672841898,0.30335842,99426.0,99425.0,0.00036542]
[1738672842128,0.30335842,99426.0,99425.0,0.00136542]
[1738672842946,0.30335842,99426.0,99425.0,0.00036542]
[1738672843425,0.30335842,99426.0,99425.0,0.00136542]
[1738672843937,0.30335842,99426.0,99425.0,0.50136542]
[1738672844921,0.29079931,99426.0,99425.0,0.50136542]
[1738672845331,0.05654925,99426.0,99425.0,0.50136542]
[1738672846421,0.03754925,99426.0,99425.0,0.50136542]
[1738672846622,0.0001069,99426.0,99425.0,0.50036542]
[1738672848379,0.0001069,99426.0,99425.0,0.50136542]
[1738672848619,0.0001069,99426.0,99425.0,0.50036542]
[1738672849016,0.0001069,99426.0,99425.0,0.50136542]
[1738672851246,0.1822329,99441.0,99425.0,0.50136542]